bitfinex-derivatives/quotes_BNBF0:USTF0_20250510
["timestamp","ask_amount","ask_price","bid_price","bid_amount"]
[1746860330446,1.96279585,663.54,662.56,1.12785945]
[1746860330645,0.24557935,663.53,662.56,1.12785945]
[1746860331148,1.96279585,663.54,662.56,1.12785945]
[1746860331648,0.24557252,663.53,662.56,1.12785945]
[1746860332950,0.24557252,663.54,662.56,1.12785945]
[1746860333147,0.24557252,663.75,662.56,1.12785945]
[1746860333449,0.24557252,663.74,662.56,1.12785945]
[1746860333643,0.50807634,663.74,662.56,1.12785945]
[1746860333949,0.24557252,663.73,662.56,1.12785945]
[1746860336258,0.24557252,663.84,662.56,1.12785945]
[1746860336456,0.26248699,663.72,662.56,1.12785945]
[1746860337259,0.24557173,663.71,662.56,1.12785945]
[1746860339160,0.24557173,663.86,662.56,1.12785945]
[1746860339459,0.24557173,663.85,662.56,1.12785945]
[1746860339859,0.24557173,663.84,662.56,1.12785945]
[1746860340158,0.24557173,663.83,662.56,1.12785945]
[1746860340458,0.24557173,663.82,662.56,1.12785945]
[1746860340760,0.24557173,663.81,662.56,1.12785945]
[1746860341160,0.24557173,663.8,662.56,1.12785945]
[1746860341457,0.24557173,663.79,662.56,1.12785945]
[1746860341761,0.24557173,663.78,662.56,1.12785945]
[1746860342062,0.24557173,663.77,662.56,1.12785945]
[1746860342454,0.24557173,663.81,662.56,1.12785945]
[1746860342755,0.24557173,663.8,662.56,1.12785945]
[1746860343359,0.24557173,663.79,662.56,1.12785945]
[1746860344164,0.24557173,663.78,662.56,1.12785945]
[1746860344559,0.24557173,663.77,662.56,1.12785945]
[1746860344860,0.24557173,663.76,662.56,1.12785945]
[1746860345255,0.24557173,663.75,662.56,1.12785945]
[1746860345755,0.50805674,663.75,662.56,1.12785945]
[1746860346460,0.26248501,663.75,662.56,1.12785945]
[1746860346860,0.24557173,663.74,662.56,1.12785945]
[1746860350063,0.24557173,663.73,662.56,1.12785945]
[1746860350462,0.24557173,663.72,662.56,1.12785945]
[1746860350867,0.24557173,663.74,662.56,1.12785945]
[1746860351267,1.96279585,663.87,662.56,1.12785945]
[1746860351669,0.26245235,663.71,662.56,1.12785945]
[1746860352168,0.24557173,663.7,662.56,1.12785945]
[1746860352663,0.26245235,663.71,662.56,1.12785945]
[1746860353067,0.2455173,663.7,662.56,1.12785945]
[1746860354365,0.26244839,663.69,662.56,1.12785945]
[1746860354770,0.2455173,663.68,662.56,1.12785945]
[1746860355572,0.26244839,663.69,662.56,1.12785945]
[1746860356071,0.24551162,663.68,662.56,1.12785945]
[1746860356972,0.24551162,664.0,662.56,1.12785945]
[1746860357373,0.26244938,663.99,662.56,1.12785945]
[1746860357571,0.507961,663.99,662.56,1.12785945]
[1746860357768,0.24551162,663.98,662.56,1.12785945]
[1746860358168,0.24551162,663.97,662.56,1.12785945]
[1746860358473,0.24551162,663.96,662.56,1.12785945]
[1746860358773,0.24551162,663.95,662.56,1.12785945]
[1746860359374,0.24551162,663.94,662.56,1.12785945]
[1746860359675,0.24551162,663.93,662.56,1.12785945]
[1746860360074,0.24551162,663.92,662.56,1.12785945]
[1746860360274,0.50796001,663.92,662.56,1.12785945]
[1746860360475,0.24551162,663.91,662.56,1.12785945]
[1746860360675,0.24551162,663.9,662.56,1.12785945]
[1746860361074,0.24551162,663.89,662.56,1.12785945]
[1746860361475,0.26244839,663.92,662.56,1.12785945]
[1746860361775,0.2455161,663.91,662.56,1.12785945]
[1746860362275,0.2455161,663.9,662.56,1.12785945]
[1746860362476,0.2455161,663.89,662.56,1.12785945]
[1746860362776,0.2455161,663.88,662.56,1.12785945]
[1746860363178,0.2455161,663.87,662.56,1.12785945]
[1746860363579,0.2455161,663.86,662.56,1.12785945]
[1746860363778,0.2455161,663.85,662.56,1.12785945]
[1746860364177,0.2455161,663.84,662.56,1.12785945]
[1746860364480,0.2455161,663.83,662.56,1.12785945]
[1746860364779,0.2455161,663.91,662.56,1.12785945]
[1746860365083,0.2455161,663.9,662.56,1.12785945]
[1746860365578,0.26244839,663.92,662.56,1.12785945]
[1746860365579,0.2455161,663.89,662.56,1.12785945]
[1746860366082,0.2455161,663.88,662.56,1.12785945]
[1746860366381,0.2455161,663.87,662.56,1.12785945]
[1746860366582,0.2455161,663.87,662.57,0.89026718]
[1746860366778,0.2455161,663.86,662.59,0.30184578]
[1746860366977,0.2455161,663.85,662.59,0.30184578]
[1746860367380,0.2455161,663.84,662.59,0.30184578]
[1746860367684,0.2455161,663.83,662.59,0.30184578]
[1746860367984,0.2455161,663.82,662.59,0.30184578]
[1746860368282,0.2455161,663.81,662.59,0.30184578]
[1746860368679,0.2455161,663.8,662.59,0.30184578]
[1746860368984,0.2455161,663.79,662.6,0.452]
[1746860369180,0.50796251,663.79,662.62,0.30183212]
[1746860369382,0.26244641,663.79,662.62,0.30183212]
[1746860369582,0.24549635,663.78,662.62,0.30183212]
[1746860370382,0.24549635,663.78,662.63,0.445]
[1746860370582,0.24549635,663.78,662.65,0.30181845]
[1746860371787,1.96279585,663.97,662.65,0.30181845]
[1746860371986,1.96279585,663.97,662.66,0.88980249]
[1746860372187,0.24536503,663.96,662.67,0.88980249]
[1746860372387,0.50774119,663.96,662.68,0.88980249]
[1746860372687,0.50774119,663.96,662.69,0.88980249]
[1746860372886,0.24536503,663.95,662.7,0.88980249]
[1746860373086,0.24536503,663.95,662.71,0.88980249]
[1746860373388,0.24536503,663.95,662.72,0.88980249]
[1746860373584,0.24536503,663.95,662.73,0.88980249]
[1746860373786,0.24536503,663.95,662.74,0.88699585]
[1746860373981,0.24536503,663.95,662.75,0.88699585]
[1746860374181,0.24536503,663.95,662.76,0.88699585]
[1746860374386,0.24536503,663.95,662.77,0.88699585]
[1746860374587,0.24536503,663.95,662.78,0.88699585]
[1746860374886,0.24536503,663.95,662.79,0.88699585]
[1746860375088,0.24536503,663.95,662.8,0.88699585]
[1746860375288,0.24536503,665.13,662.81,0.88699585]
[1746860375482,0.26222492,663.94,662.82,0.88699585]
[1746860375685,0.26222492,663.94,662.83,0.88699585]
[1746860375882,0.26222492,663.94,662.65,0.30181845]
[1746860375883,0.24536503,663.93,662.84,0.88699585]
[1746860376089,0.24536503,663.93,662.85,0.88699585]
[1746860376286,0.24536503,663.93,662.86,0.89389738]
[1746860376485,0.24536503,663.93,662.87,0.89389738]
[1746860376685,0.24536503,663.93,662.88,0.89389738]
[1746860376885,0.24536503,663.93,662.89,0.89389738]
[1746860377088,0.24536503,663.93,662.65,0.30181845]
[1746860377290,0.24536503,663.93,662.66,0.89322013]
[1746860377488,0.24536503,663.93,662.67,0.89322013]
[1746860377789,0.24536503,663.93,662.68,0.89322013]
[1746860377983,0.24536503,663.93,662.69,0.89322013]
[1746860378187,0.24536503,663.93,662.7,0.89322013]
[1746860378387,0.24536503,663.93,662.71,0.89322013]
[1746860378689,0.24536503,663.93,662.72,0.89322013]
[1746860378984,0.24536503,663.93,662.73,0.89322013]
[1746860379183,0.24536503,663.93,662.74,0.89322013]
[1746860379383,0.24536503,663.93,662.75,0.89322013]
[1746860379589,0.24536503,663.93,662.76,0.89322013]
[1746860379888,0.24536503,663.93,662.77,0.89322013]
[1746860380093,0.24536503,663.93,662.78,0.89322013]
[1746860380288,0.24536503,663.93,662.79,0.89322013]
[1746860380490,0.26222492,663.94,662.8,0.89322013]
[1746860380683,0.26222492,663.94,662.81,0.89322013]
[1746860380888,0.26222492,663.94,662.82,0.89322013]
[1746860381087,0.26222492,663.94,662.83,0.89322013]
[1746860381285,0.26222492,663.94,662.84,0.89322013]
[1746860381487,0.26222492,663.94,662.85,0.89322013]
[1746860381690,0.26222492,663.94,662.86,0.89322013]
[1746860381889,0.26222492,663.94,662.87,0.89322013]
[1746860382084,0.26222492,663.94,662.88,0.89322013]
[1746860382290,0.26222492,663.94,662.89,0.89322013]
[1746860382584,0.26222492,663.94,662.9,0.89322013]
[1746860382788,0.26222492,663.94,662.91,0.8884942]
[1746860382989,0.26222492,663.94,662.92,0.8884942]
[1746860383285,0.26222492,663.94,662.93,0.8884942]
[1746860383489,0.26222492,663.94,662.65,0.30181845]
[1746860383691,0.26222492,663.94,662.66,0.88809031]
[1746860383886,0.26222492,663.94,662.67,0.88809031]
[1746860384095,0.26222492,663.94,662.68,0.88809031]
[1746860384295,0.26222492,663.94,662.69,0.88809031]
[1746860384497,0.26222492,663.94,662.7,0.88809031]
[1746860384696,0.26222492,663.94,662.71,0.88809031]
[1746860384897,0.26222492,663.94,662.73,0.30178202]
[1746860385101,0.26222492,663.94,662.74,0.88809031]
[1746860385401,0.26222492,663.94,662.75,0.88809031]
[1746860385596,0.26222492,663.94,662.76,0.88809031]
[1746860385794,0.26222492,663.94,662.77,0.88809031]
[1746860386097,0.26222492,663.94,662.78,0.88809031]
[1746860386299,0.26222492,663.94,662.79,0.88809031]
[1746860386499,0.26222492,663.94,662.8,0.88809031]
[1746860386698,0.26222492,663.94,662.81,0.88809031]
[1746860386896,1.96279585,666.85,662.83,0.30173649]
[1746860386897,1.96279585,665.58,662.83,0.30173649]
[1746860387197,0.2452683,665.57,662.84,0.88809031]
[1746860387402,0.2452683,665.57,662.85,0.88809031]
[1746860387597,0.2452683,665.56,662.86,0.88809031]
[1746860387801,0.2452683,665.55,662.87,0.88809031]
[1746860388002,0.2452683,665.55,662.88,0.88809031]
[1746860388204,0.2452683,665.54,662.89,0.88809031]
[1746860388403,0.2452683,665.54,662.9,0.88809031]
[1746860388602,0.2452683,665.54,662.91,0.88809031]
[1746860388803,0.2452683,665.53,662.83,0.30173649]
[1746860389000,0.2452683,665.53,662.84,0.88717312]
[1746860389200,0.2452683,665.52,662.85,0.88717729]
[1746860389403,0.2452683,665.51,662.86,0.88717729]
[1746860389598,0.2452683,665.51,662.87,0.88717729]
[1746860389798,0.2452683,665.5,662.88,0.88717729]
[1746860390000,0.2452683,665.5,663.0,0.30165912]
[1746860390195,0.2452683,665.49,663.0,0.30165912]
[1746860390699,0.2452683,665.48,663.0,0.30165912]
[1746860390905,0.2452683,665.47,663.0,0.30165912]
[1746860391501,1.96279585,665.33,663.0,0.30165912]
[1746860391904,0.2452683,665.32,663.0,0.30165912]
[1746860392100,0.2452683,665.32,663.01,0.88625553]
[1746860392306,1.96279585,665.33,663.0,0.30165912]
[1746860392307,0.2452683,665.31,663.0,0.30165912]
[1746860392605,0.2452683,665.3,663.01,0.88597191]
[1746860392800,0.2452683,665.3,663.02,0.88597191]
[1746860392998,0.2452683,665.29,663.0,0.30165912]
[1746860393200,0.2452683,665.28,663.01,0.88590252]
[1746860393500,0.2452683,665.27,663.02,0.88590252]
[1746860393800,0.2452683,665.27,663.03,0.88562774]
[1746860394105,0.2452683,665.26,663.04,0.88562774]
[1746860394301,0.2452683,665.25,663.05,0.88557954]
[1746860394505,0.2452683,665.25,663.06,0.88557954]
[1746860394804,0.2452683,665.25,663.07,0.88557954]
[1746860395108,0.2452683,665.24,663.08,0.88557954]
[1746860395306,0.2452683,665.24,663.09,0.88557954]
[1746860395505,0.2452683,665.23,663.1,0.88551418]
[1746860395803,0.2452683,665.23,663.11,0.88551418]
[1746860396007,0.2452683,665.23,663.0,0.30165912]
[1746860396207,0.2452683,665.22,663.01,0.88523724]
[1746860396405,0.2452683,665.21,663.02,0.88523724]
[1746860396605,0.2452683,665.21,663.03,0.88523724]
[1746860396806,0.2452683,665.2,663.04,0.88523724]
[1746860397007,0.2452683,665.2,663.05,0.88523724]
[1746860397208,0.2452683,665.19,663.06,0.88523724]
[1746860397508,0.2452683,665.18,663.0,0.30165912]
[1746860397708,0.2452683,665.18,663.01,0.88499775]
[1746860398010,0.2452683,665.17,663.02,0.88499775]
[1746860398208,0.2452683,665.17,663.03,0.88499775]
[1746860398410,0.2452683,665.17,663.04,0.88499775]
[1746860398609,0.2452683,665.16,663.05,0.88499775]
[1746860398805,0.2452683,665.15,663.0,0.30165912]
[1746860399110,0.2452683,665.14,663.01,0.88476503]
[1746860399405,0.2452683,665.13,663.01,0.88476503]
[1746860399605,0.2452683,665.12,663.01,0.88476503]
[1746860399911,0.2452683,665.12,663.11,0.30160908]
[1746860400109,0.2452683,665.11,663.11,0.30160908]
[1746860400411,0.2452683,665.1,663.11,0.30160908]
[1746860400710,0.2452683,665.09,663.11,0.30160908]
[1746860401010,0.2452683,665.08,663.11,0.30160908]
[1746860401311,0.2452683,665.07,663.11,0.30160908]
[1746860401711,0.2452683,665.06,663.11,0.30160908]
[1746860402012,0.2452683,665.05,663.11,0.30160908]
[1746860402712,0.2452683,665.04,663.11,0.30160908]
[1746860403213,0.2452683,665.03,663.11,0.30160908]
[1746860403513,0.26209852,665.14,663.11,0.30160908]
[1746860403812,0.24520659,665.13,663.11,0.30160908]
[1746860404005,0.24520659,665.13,663.12,0.357]
[1746860404615,0.24520659,665.12,663.12,0.357]
[1746860405006,0.24520659,665.11,663.14,0.30159543]
[1746860405413,0.24520659,665.1,663.14,0.30159543]
[1746860405714,0.50734558,665.1,663.14,0.30159543]
[1746860406014,0.24520659,665.09,663.14,0.30159543]
[1746860406215,1.96279585,664.77,663.14,0.30159543]
[1746860406817,0.24520659,664.76,663.14,0.30159543]
[1746860407309,0.24520659,664.75,663.14,0.30159543]
[1746860407513,0.24520659,664.74,663.14,0.30159543]
[1746860408115,0.24520659,664.73,663.14,0.30159543]
[1746860408310,0.24520659,664.72,663.14,0.30159543]
[1746860408816,0.24520659,664.71,663.14,0.30159543]
[1746860409117,0.24520659,664.7,663.14,0.30159543]
[1746860409615,0.24520659,664.69,663.14,0.30159543]
[1746860409809,0.24520659,664.69,663.14,0.28879272]
[1746860410016,0.24520659,664.68,663.14,0.28879272]
[1746860410315,0.24520659,664.67,663.14,0.28879272]
[1746860410715,0.24520659,664.66,663.14,0.28879272]
[1746860411216,0.26220812,664.66,663.14,0.28879272]
[1746860411410,0.24520659,664.65,663.14,0.28879272]
[1746860412916,0.26220812,664.66,663.14,0.28879272]
[1746860413310,0.24469157,664.65,663.14,0.28879272]
[1746860413716,0.24469157,664.64,663.14,0.28879272]
[1746860414112,0.24469157,664.63,663.14,0.28879272]
[1746860414712,0.24469157,664.62,663.14,0.28879272]
[1746860415219,0.24469157,664.61,663.14,0.28879272]
[1746860415624,0.24469157,664.6,663.14,0.28879272]
[1746860415919,0.24469157,664.59,663.14,0.28879272]
[1746860416319,0.24469157,664.58,663.14,0.28879272]
[1746860416622,0.24469157,664.57,663.14,0.28879272]
[1746860417023,0.24469157,664.56,663.14,0.28879272]
[1746860417224,0.24469157,664.55,663.14,0.28879272]
[1746860417522,0.24469157,664.54,663.14,0.28879272]
[1746860417924,0.24469157,664.53,663.14,0.28879272]
[1746860418319,0.24469157,664.52,663.14,0.28879272]
[1746860418924,0.24469157,664.51,663.14,0.28879272]
[1746860419321,0.24469157,664.5,663.14,0.28879272]
[1746860419623,0.24469157,664.49,663.14,0.28879272]
[1746860420023,0.24469157,664.48,663.14,0.28879272]
[1746860420323,0.24469157,664.47,663.14,0.28879272]
[1746860420522,0.50697578,664.47,663.14,0.28879272]
[1746860420722,0.24469157,664.46,663.14,0.28879272]
[1746860421129,0.24469157,664.45,663.14,0.28879272]
[1746860421519,0.24469157,664.44,663.14,0.28879272]
[1746860421725,0.24469157,664.43,663.14,0.28879272]
[1746860422126,0.24469157,664.42,663.14,0.28879272]
[1746860422626,0.24469157,664.41,663.14,0.28879272]
[1746860423126,0.24469157,664.4,663.14,0.28879272]
[1746860423428,0.24469157,664.39,663.14,0.28879272]
[1746860423729,0.50707169,664.39,663.14,0.28879272]
[1746860423931,0.24469157,664.38,663.14,0.28879272]
[1746860424229,0.24469157,664.37,663.14,0.28879272]
[1746860424429,0.24469157,664.37,663.15,0.379]
[1746860424632,0.24469157,664.36,663.15,0.379]
[1746860424828,0.24469157,664.35,663.15,0.379]
[1746860425331,0.24469157,664.34,663.15,0.379]
[1746860425730,0.24469157,664.33,663.15,0.379]
[1746860426031,0.26238012,664.39,663.15,0.379]
[1746860426332,1.96279585,664.25,663.15,0.379]
[1746860426729,0.24489272,664.24,663.15,0.379]
[1746860427030,0.24489272,664.23,663.15,0.379]
[1746860427432,0.24489272,664.22,663.15,0.379]
[1746860427727,0.24489272,664.21,663.15,0.379]
[1746860428032,0.24489272,664.2,663.15,0.379]
[1746860428333,0.24489272,664.19,663.15,0.379]
[1746860428733,0.24489272,664.18,663.15,0.379]
[1746860429028,0.24489272,664.17,663.15,0.379]
[1746860429234,0.24489272,664.16,663.15,0.379]
[1746860429634,0.24489272,664.15,663.16,0.30158634]
[1746860429829,0.26230991,664.17,663.16,0.30158634]
[1746860430234,0.24483381,664.16,663.16,0.30158634]
[1746860430535,0.24483381,664.15,663.16,0.30158634]
[1746860430936,0.24483381,664.14,663.16,0.30158634]
[1746860431333,0.24483381,664.13,663.16,0.30158634]
[1746860431635,0.24483381,664.12,663.16,0.30158634]
[1746860432329,0.24483381,664.11,663.16,0.30158634]
[1746860432734,0.24483381,664.16,663.16,0.30158634]
[1746860433539,0.24483381,664.16,663.17,0.457]
[1746860433835,0.26230991,664.17,663.17,0.457]
[1746860434232,0.24475244,664.16,663.18,0.30157724]
[1746860436136,0.26230991,664.17,663.18,0.30157724]
[1746860436537,0.24476088,664.16,663.18,0.30157724]
[1746860436938,0.24476088,664.15,663.18,0.30157724]
[1746860437337,0.24476088,664.14,663.18,0.30157724]
[1746860437637,0.26230991,664.17,663.18,0.30157724]
[1746860437638,0.24476088,664.13,663.18,0.30157724]
[1746860438032,0.24476088,664.12,663.18,0.30157724]
[1746860438338,0.24476088,664.11,663.18,0.30157724]
[1746860438739,0.26226049,664.12,663.18,0.30157724]
[1746860439538,0.24479577,664.11,663.18,0.30157724]
[1746860440736,0.24479577,664.1,663.18,0.30157724]
[1746860441233,0.24479577,664.09,663.18,0.30157724]
[1746860441639,0.24479577,664.08,663.18,0.30157724]
[1746860441937,0.24479577,664.07,663.18,0.30157724]
[1746860442336,0.26226049,664.12,663.18,0.30157724]
[1746860442337,0.24479577,664.06,663.18,0.30157724]
[1746860442538,0.24479577,664.05,663.18,0.30157724]
[1746860442936,0.24479577,664.11,663.18,0.30157724]
[1746860443439,0.24479577,664.1,663.18,0.30157724]
[1746860443733,0.24479577,664.09,663.18,0.30157724]
[1746860444132,0.24479577,664.08,663.18,0.30157724]
[1746860444333,0.24479577,664.07,663.18,0.30157724]
[1746860444739,1.96279585,664.53,663.18,0.30157724]
[1746860444740,0.24479577,664.06,663.18,0.30157724]
[1746860445039,0.24479577,664.05,663.18,0.30157724]
[1746860445240,0.50710963,664.05,663.18,0.30157724]
[1746860445439,0.24479577,664.04,663.18,0.30157724]
[1746860445739,0.24479577,664.03,663.18,0.30157724]
[1746860446038,0.24479577,664.02,663.18,0.30157724]
[1746860446437,0.26231386,664.05,663.18,0.30157724]
[1746860446438,0.24479577,664.01,663.18,0.30157724]
[1746860446934,0.24479577,664.0,663.18,0.30157724]
[1746860447540,0.50713633,663.99,663.18,0.30157724]
[1746860447938,0.24479577,663.98,663.18,0.30157724]
[1746860448334,0.24479577,663.97,663.18,0.30157724]
[1746860448738,0.24479577,663.96,663.18,0.30157724]
[1746860449136,0.24479577,663.95,663.18,0.30157724]
[1746860449444,0.24479577,663.94,663.18,0.30157724]
[1746860449739,0.24479577,663.93,663.18,0.30157724]
[1746860450137,1.96279585,664.29,663.18,0.30157724]
[1746860450138,0.24479577,663.92,663.18,0.30157724]
[1746860450541,0.24479577,663.91,663.18,0.30157724]
[1746860450739,0.50715116,663.91,663.18,0.30157724]
[1746860450939,0.24479577,663.9,663.18,0.30157724]
[1746860451241,0.24479577,663.89,663.18,0.62957724]
[1746860451940,0.24479577,663.88,663.18,0.62957724]
[1746860452341,0.24479577,663.87,663.18,0.62957724]
[1746860452534,0.24479577,663.86,663.18,0.62957724]
[1746860452840,0.24479577,663.85,663.18,0.62957724]
[1746860453340,0.24479577,663.84,663.18,0.62957724]
[1746860453544,0.50716204,663.84,663.18,0.62957724]
[1746860453748,0.24479577,663.83,663.18,0.62957724]
[1746860454039,0.24479577,663.82,663.18,0.62957724]
[1746860454445,0.24479577,663.83,663.18,0.62957724]
[1746860459448,0.24479577,664.5,663.18,0.62957724]
[1746860459642,1.96279585,664.51,663.18,0.62957724]
[1746860460047,0.24479011,664.5,663.18,0.62957724]
[1746860460448,0.24479011,664.49,663.18,0.62957724]
[1746860460650,0.50707234,664.49,663.18,0.62957724]
[1746860460850,0.24479011,664.48,663.18,0.62957724]
[1746860461149,0.24479011,664.47,663.18,0.62957724]
[1746860461556,0.24479011,664.46,663.18,0.62957724]
[1746860462054,1.96279585,665.15,663.18,0.62957724]
[1746860462055,0.24479011,664.45,663.18,0.62957724]
[1746860462354,0.24479011,664.44,663.18,0.62957724]
[1746860462655,0.24479011,664.43,663.18,0.62957724]
[1746860463053,0.24479011,664.42,663.18,0.62957724]
[1746860463353,0.24479011,664.41,663.18,0.62957724]
[1746860463754,0.24479011,664.4,663.18,0.62957724]
[1746860464055,0.24479011,664.39,663.18,0.62957724]
[1746860464555,0.24479011,664.38,663.18,0.62957724]
[1746860464754,1.96279585,664.37,663.18,0.62957724]
[1746860464950,2.20758596,664.37,663.18,0.62957724]
[1746860465250,0.24479011,664.36,663.18,0.62957724]
[1746860465750,0.50706938,664.35,663.18,0.62957724]
[1746860465956,0.24479011,664.34,663.18,0.62957724]
[1746860466255,0.24479011,664.33,663.18,0.62957724]
[1746860466654,0.24479011,664.32,663.18,0.62957724]
[1746860467253,0.24479011,664.31,663.18,0.62957724]
[1746860467751,0.24479011,664.3,663.18,0.62957724]
[1746860468254,0.24479011,664.29,663.18,0.62957724]
[1746860468452,0.50706839,664.29,663.18,0.62957724]
[1746860468756,0.24479011,664.28,663.18,0.62957724]
[1746860469056,0.24479011,664.27,663.18,0.62957724]
[1746860469556,0.24479011,664.26,663.18,0.62957724]
[1746860469853,0.26227828,664.29,663.18,0.62957724]
[1746860470059,0.24474983,664.28,663.18,0.62957724]
[1746860470457,0.24474983,664.27,663.18,0.62957724]
[1746860471056,0.24474983,664.26,663.18,0.62957724]
[1746860471252,0.50701526,664.26,663.18,0.62957724]
[1746860471456,0.24474983,664.25,663.18,0.62957724]
[1746860474553,0.26220417,664.24,663.18,0.62957724]
[1746860474957,0.24474983,664.23,663.18,0.62957724]
[1746860477261,0.26220516,664.22,663.18,0.62957724]
[1746860477660,0.24474983,664.21,663.18,0.62957724]
[1746860480563,0.26220022,664.2,663.18,0.62957724]
[1746860480963,0.24474983,664.19,663.18,0.62957724]
[1746860483169,0.24474983,665.08,663.18,0.62957724]
[1746860483466,0.26220022,664.18,663.18,0.62957724]
[1746860483968,0.24474983,664.17,663.18,0.62957724]
[1746860484270,0.26220022,664.18,663.18,0.62957724]
[1746860484670,0.24474189,664.17,663.18,0.62957724]
[1746860489177,1.96279585,664.68,663.18,0.62957724]
[1746860489376,0.26220318,664.16,663.18,0.62957724]
[1746860489978,0.24474189,664.15,663.18,1.03457724]
[1746860492379,0.24474189,664.61,663.18,1.03457724]
[1746860492573,0.26225456,664.14,663.18,1.03457724]
[1746860492973,0.24474189,664.6,663.18,1.03457724]
[1746860493277,0.24474189,664.13,663.18,1.03457724]
[1746860493579,0.30072474,665.06,663.18,1.03457724]
[1746860493580,1.96279585,664.46,663.18,1.03457724]
[1746860493879,0.24474189,664.45,663.18,1.03457724]
[1746860494180,0.50698855,664.45,663.18,1.03457724]
[1746860494383,0.24474189,664.44,663.18,1.03457724]
[1746860494576,0.24474189,664.43,663.18,1.03457724]
[1746860494979,0.24474189,664.42,663.18,1.03457724]
[1746860495280,0.24474189,664.41,663.18,1.03457724]
[1746860495482,1.96279585,664.4,663.18,1.03457724]
[1746860495682,0.24474189,664.39,663.18,1.03457724]
[1746860496082,0.24474189,664.38,663.18,1.03457724]
[1746860496384,0.24474189,664.37,663.18,1.03457724]
[1746860496783,0.24474189,664.36,663.18,1.03457724]
[1746860497085,0.24474189,664.35,663.18,1.03457724]
[1746860497584,0.24474189,664.34,663.18,1.03457724]
[1746860498181,0.24474189,664.33,663.18,1.03457724]
[1746860498484,0.24474189,664.32,663.18,1.03457724]
[1746860498888,0.24474189,664.31,663.18,1.03457724]
[1746860499186,0.24474189,664.42,663.18,1.03457724]
[1746860499486,0.24474189,664.41,663.18,1.03457724]
[1746860499687,0.50699151,664.41,663.18,1.03457724]
[1746860499881,0.24474189,664.4,663.18,1.03457724]
[1746860500285,0.24474189,664.39,663.18,1.03457724]
[1746860500687,0.24474189,664.38,663.18,1.03457724]
[1746860501187,0.24474189,664.37,663.18,1.03457724]
[1746860501483,0.50698163,664.37,663.18,1.03457724]
[1746860501689,0.24474189,664.36,663.18,1.03457724]
[1746860501988,0.24474189,664.35,663.18,1.03457724]
[1746860502388,0.24474189,664.34,663.18,1.03457724]
[1746860502692,0.24474189,664.33,663.18,1.03457724]
[1746860503397,0.24474189,664.32,663.18,1.03457724]
[1746860503788,0.24474189,664.31,663.18,1.03457724]
[1746860504088,0.24474189,664.36,663.18,1.03457724]
[1746860504489,0.24474189,664.35,663.18,1.03457724]
[1746860504792,0.24474189,664.34,663.18,1.03457724]
[1746860505089,0.24474189,664.33,663.18,1.03457724]
[1746860505486,0.24474189,664.32,663.18,1.03457724]
[1746860505889,0.24474189,664.31,663.18,1.03457724]
[1746860506290,0.24474189,664.36,663.18,1.03457724]
[1746860506591,0.24474189,664.35,663.18,1.03457724]
[1746860507085,0.24474189,664.36,663.18,1.03457724]
[1746860507391,0.24474189,664.51,663.18,1.03457724]
[1746860508091,0.24474189,664.5,663.18,1.03457724]
[1746860508392,0.24474189,664.49,663.18,1.03457724]
[1746860508793,0.24474189,664.48,663.18,1.03457724]
[1746860509091,0.24474189,664.47,663.18,1.03457724]
[1746860509487,0.24474189,664.46,663.18,1.03457724]
[1746860509791,0.24474189,664.45,663.18,1.03457724]
[1746860510193,0.24474189,664.44,663.18,1.03457724]
[1746860510386,0.50696878,664.44,663.18,1.03457724]
[1746860510586,0.24474189,664.43,663.18,1.03457724]
[1746860511893,0.24474189,664.42,663.18,1.03457724]
[1746860512393,0.24474189,664.41,663.18,1.03457724]
[1746860512894,0.24474189,664.43,663.18,1.03457724]
[1746860513291,0.24474189,664.42,663.18,1.03457724]
[1746860513791,0.24474189,664.41,663.18,1.03457724]
[1746860514188,0.24474189,664.4,663.18,1.03457724]
[1746860514388,0.50696681,664.4,663.18,1.03457724]
[1746860514587,0.26222492,664.4,663.18,1.03457724]
[1746860514888,0.24474189,664.39,663.18,1.03457724]
[1746860515287,0.24474189,664.38,663.18,1.03457724]
[1746860515691,0.24474189,664.39,663.18,1.03457724]
[1746860516192,0.24474189,664.38,663.18,1.03457724]
[1746860516493,0.26222887,664.38,663.18,1.03457724]
[1746860516694,0.24469621,664.37,663.18,1.03457724]
[1746860517092,0.24469621,664.36,663.18,1.03457724]
[1746860517493,0.24469621,664.35,663.18,1.03457724]
[1746860517793,0.24469621,664.34,663.18,1.03457724]
[1746860518194,0.24469621,664.33,663.18,1.03457724]
[1746860518494,0.24469621,664.32,663.18,1.03457724]
[1746860518893,0.24469621,664.31,663.18,1.03457724]
[1746860519091,0.24469621,664.3,663.18,1.03457724]
[1746860519595,0.50694089,664.29,663.18,1.03457724]
[1746860519895,0.24469621,664.28,663.18,1.03457724]
[1746860520197,0.26224468,664.29,663.18,1.03457724]
[1746860520799,0.24469321,664.28,663.18,1.03457724]
[1746860521092,0.24469321,664.27,663.18,1.03457724]
[1746860521596,0.24469321,664.26,663.18,1.03457724]
[1746860521893,0.24469321,664.25,663.18,1.03457724]
[1746860522397,0.24469321,664.24,663.18,1.03457724]
[1746860522598,0.24469321,664.23,663.18,1.03457724]
[1746860522897,0.24469321,664.28,663.18,1.03457724]
[1746860523799,1.96279585,664.18,663.18,1.03457724]